Workbook

Sheet 1-TITLE
Q1: D09-HS-FY2025
Q5: PID No. | X5: FEDERAL PROJECT No.
Q6: 117086 | X6: 100% STATE
Q8: STATE JOB No. | X8: CONSTRUCTION PROJECT No.
Q9: 496027
R11: PROJECT DESCRIPTION CONDUCT HERBICIDAL SPRAYING ALONG U.S. AND STATE ROUTES IN ADAMS, BROWN, LAWRENCE, PIKE AND ROSS COUNTIES OF DISTRICT 9.
A19: LATITUDE: 39°19'28"N | I19: LONGITUDE: 82°57'47"W | R19: 2023 SPECIFICATIONS THE STANDARD SPECIFICATIONS OF THE STATE OF OHIO, DEPARTMENT OF TRANSPORTATION, INCLUDING CHANGES AND SUPPLEMENTAL SPECIFICATIONS LISTED IN THE PROPOSAL SHALL GOVERN THIS IMPROVEMENT.
A21: EARTH DISTURBED AREA: | O21: N/A*
A22: PROJECT EARTH DISTURBED AREA: | O22: N/A*
A23: EST. CONTRACTOR EARTH DISTURBED AREA: | O23: N/A*
A24: NOTICE OF INTENT EARTH DISTURBED AREA: | O24: N/A*
A25: RAILROAD INVOLVEMENT: | O25: NONE | R25: I HEREBY APPROVE THESE PLANS AND DECLARE THAT THE MAKING OF THIS IMPROVEMENT WILL NOT REQUIRE THE CLOSING OF THE HIGHWAY TO TRAFFIC AND THAT PROVISIONS FOR THE MAINTENANCE AND SAFETY OF TRAFFIC WILL BE AS SET FORTH IN THESE PLANS AND ESTIMATES.
A26: *TYPE OF PROJECT: | K26: MAINTENANCE
A28: DESIGN EXCEPTION: | I28: NONE
A31: UNDERGROUND UTILITIES
A32: CONTACT BOTH SERVICES CALL TWO WORKING DAYS BEFORE YOU DIG
Q33: APPROVED:
U34: DISTRICT DEPUTY DIRECTOR
A35: CALL 1-800-362-2764 (TOLL FREE) OHIO UTILITIES PROTECTION SERVICE NON-MEMBERS MUST BE CALLED DIRECTLY
Q36: DATE:
Q38: APPROVED:
U39: DIRECTOR, DEPARTMENT OF TRANSPORTATION
A40: OIL & GAS PRODUCERS UNDERGROUND PROTECTION SERVICE CALL: 1-800-925-0988
Q41: DATE:
A43: PLANS PREPARED BY:
A44: ODOT-D09 ENGINEERING | J44: STANDARD CONSTRUCTION DRAWINGS | AB44: SUPPLEMENTAL SPECIFICATIONS
A46: ENGINEER SEAL | J46: MT-95.30 | M46: 2019-07-19 | P46: TC-41.20 | S46: 2013-10-18 | AB46: 800 | AE46: 2024-01-19
J47: MT-95.31 | M47: 2019-07-19 | P47: TC-52.10 | S47: 2013-10-18 | AB47: 832 | AE47: 2023-07-21
J48: MT 95.32 | M48: 2019-04-19 | P48: TC-52.20 | S48: 2021-01-15
J49: MT-97.10 | M49: 2019-04-19
J50: MT-105.10 | M50: 2020-01-17
AB51: SPECIAL PROVISIONS

Sheet 2- INDEX
C2: INDEX OF SHEETS
B5: TITLE SHEET………………………………………………………………………………………………………….. | J5: 1
B7: INDEX OF SHEETS……………………………………………………………………………………………………… | J7: 2
B9: TYPICAL SECTION……………………………………………………………………………………………… | J9: 3
B11: GENERAL NOTES………………………………………………………………………………………………… | J11: 4-6
B13: MAINTENANCE OF TRAFFIC NOTES……………………………………………...…………………… | J13: 7-8
B15: GENERAL SUMMARY………………………………………………………………………………………………… | J15: 9
B17: ADAMS SUB-SUMMARY…………………………………………………………………………………………… | J17: 10
B19: BROWN SUB-SUMMARY…………………………………………………………………………………………….. | J19: 11
B21: LAWRENCE SUB-SUMMARY………………………………………………………………………………………..10 | J21: 12
B23: PIKE SUB-SUMMARY…………………………………………………………………………………………………11 | J23: 13
B25: ROSS SUB-SUMMARY……………………………………………………………………………………………….12 | J25: 14
B27: NO SPRAY AREAS SUMMARY…..................................................................................... | J27: 15
B29: GUARDRAIL & SIGNPOST SPRAYING DETAILS………………………………………………………………….14 | J29: 16
B31: CURB & CONCRETE BARRIER SPRAYING DETAILS…………………………………………………………….15 | J31: 17

Sheet 3-TYP. SEC.

Sheet 4-NOTES (1)
A1: GENERAL NOTES
A3: DESCRIPTION OF WORK | C3: LICENSES REQUIRED
A5: THE WORK SHALL CONSIST OF APPLYING WEED CONTROL MATERIALS | C5: THE CONTRACTOR SHALL BE LICENSED BY THE OHIO
A6: ON HIGHWAY RIGHT-OF-WAY TO CONTROL VEGETATION AROUND | C6: DEPARTMENT OF AGRICULTURE AS A COMMERCIAL
A7: GUARDRAIL, SIGN POSTS, LIGHT POLES AND IN CURBED AREAS. | C7: APPLICATOR. ALL PERSONS INVOLVED IN THE ACTUAL SPRAY
C8: APPLICATION SHALL BE LICENSED AS COMMERCIAL
A9: VEGETATION CONTROL SHALL BE PERFORMED BY APPLYING A SWATH | C9: OPERATORS IN THE APPROPRIATE SPRAY CATEGORY.
A10: OF 40 INCHES TYPICAL WIDTH, IN FRONT OF, UNDER AND BEHIND THE | C10: LICENSES SHALL BE SUBMITTED TO THE ENGINEER, PRIOR TO
A11: GUARDRAIL, BARRIER-TYPE GUARDRAIL AND CONCRETE BARRIER | C11: BEGINNING WORK, FOR VERIFICATION.
A12: SHALL BE SPRAYED FROM BOTH SIDES TO GET THE DESIRED WIDTH.
A13: VEGETATION GROWING IN JOINTS BETWEEN CONCRETE BARRIERS | C13: THE NUMBER OF PERSONNEL REQUIRED IN EACH SPRAY VEHICLE
A14: AND CURBS SHALL BE TREATED, SIGN AND DELINEATOR POSTS SHALL | C14: SHALL COMPLY WITH OHIO DEPARTMENT OF AGRICULTURAL
A15: ALSO BE TREATED USING A TYPICAL 36 INCH TREATMENT PATTERN. | C15: REGULATION OAC 901:5-11-02 (B)(13).
A16: APPLICATION DETAILS FOR VEGETATION CONTROL ARE SHOWN ON | C16: A CDL LICENSED VEHICLE OPERATOR IS REQUIRED WHERE
A17: SHEET 16-17. | C17: APPLICABLE.
A19: HERBICIDE SHALL NOT BE APPLIED WHERE AN ODOT "DO NOT SPRAY"
A20: SIGN IS ERECTED, A SIGN IS POSTED BY A PRIVATE PROPERTY | C20: REPORTING PROGRESS
A21: OWNER OR IN AREAS WHERE TURF IS MAINTAINED AS A LAWN AREA.
A22: BACKSLOPE BURIED GUARDRAIL ENDS SHALL NOT BE SPRAYED. | C22: THE CONTRACTOR SHALL SUBMIT A WRITTEN REPORT EACH
C23: DAY TO THE ENGINEER OF THE WORK PERFORMED THE
A24: VEHICLES AND EQUIPMENT | C24: PREVIOUS DAY. THE STATE WILL MAKE AVAILABLE AN AGENT
C25: DURING NORMAL WORKING HOURS TO DEFINE THE AREAS TO
A26: ALL APPLICATION OPERATIONS SHALL BE PERFORMED FROM | C26: BE TREATED.
A27: VEHICLES OPERATED ON THE ROADWAY OR SHOULDER, SUCH
A28: VEHICLES SHALL BE MOTOR VEHICLES LICENSED TO OPERATE ON | C28: 107.12 RESPONSIBILITY FOR DAMAGE CLAIMS
A29: OHIO HIGHWAYS AND HAVE EVIDENCE OF AN APPROVED MOTOR
A30: VEHICLE INSPECTION CURRENT WITHIN THE PAST TWO (2) YEARS. | C30: THE CONTRACTOR SHALL, AT THE PRE CONSTRUCTION
A31: NO ON-FOOT APPLICATION SHALL BE PERMITTED. APPLICATION | C31: CONFERENCE, SUBMIT A FULL DISCLOSURE OF HIS
A32: SHALL BE BY BOOM-MOUNTED OR VEHICLE MOUNTED SPRAY | C32: OPERATIONAL AND ENVIRONMENTAL PLANS AS FOLLOWS:
A33: NOZZLES WITH INSTANTANEOUS SHUT OFF VALVES IMMEDIATELY
A34: ACCESSIBLE TO THE SPRAY OPERATORS FROM HIS OPERATING | C34: 1) AN ON-SITE CHEMICAL SPILL WORKER GUIDELINE,
A35: POSITION, TO PROVIDE ONE-PASS APPLICATION. APPLICATION | C35: 2) A CONTINGENCY PLAN FOR FIELD OPERATIONS,
A36: VEHICLE OPERATORS SHALL AT ALL TIMES COMPLY WITH APPLICABLE | C36: 3) A RESPONSIBLE FOLLOW-UP COMPLAINT PROCEDURE
A37: TRAFFIC LAWS. UNSAFE CONDUCT WILL BE REPORTED TO THE OHIO
A38: HIGHWAY PATROL BY THE ENGINEER. | C38: THE CONTRACTOR SHALL TAKE EVERY PRECAUTION IN HIS
C39: OPERATIONS TO AVOID PROPERTY DAMAGE AND ASSUMES ALL
A40: ELECTRONIC SPRAY CONTROLLERS, WHICH ADJUST MATERIAL FLOW | C40: LIABILITY FOR ANY DAMAGE RESULTING FROM HIS ACTIONS,
A41: RATE AS GROUND SPEED CHANGES, SHALL BE USED TO CONTROL | C41: ERRORS OR OMISSIONS AND SHALL HOLD THE STATE OF OHIO
A42: ALL MATERIAL APPLICATION. THE CONTROLLER SHALL DISPLAY, | C42: DEPARTMENT OF TRANSPORTATION HARMLESS. ALL DAMAGE
A43: WHEN SELECTED, THE GROUND SPEED, WIDTH OF APPLICATION, | C43: COMPLAINTS SHALL BE INVESTIGATED PROMPTLY BY THE
A44: RATE OF APPLICATION GALLONS PER ACRE, CUMULATIVE DISTANCE | C44: CONTRACTOR AT THE DIRECTION OF THE ENGINEER.
A45: TRAVELED, CUMULATIVE AREA COVERS AND TOTAL GALLONS OF
A46: MATERIAL APPLIED, SUCH DATA TO BE RECORDED ONLY WHEN | C46: LATERAL LEACHING OF THE SPRAY MATERIAL SHALL NOT
A47: APPLICATOR IS SPRAYING. THE CONTROLLER SHALL BE EASILY | C47: EXCEED 18 INCHES. IF EXCESS LEACHING OCCURS, IT SHALL
A48: CALIBRATED AND CALIBRATION SHALL BE MAINTAINED AND CHECKED | C48: BE REPAIRED BY THE CONTRACTOR AT HIS EXPENSE.
A49: DAILY.
C50: SCHEDULE OF WORK — VEGETATION CONTROL
A51: ALL APPLICATION EQUIPMENT SHALL BE EQUIPPED WITH ANTI-SIPHON
A52: DEVICES OR THE FILLER HOSE SHALL NOT BE PERMITTED TO COME | C52: THE CONTRACTOR SHALL BE RESPONSIBLE FOR DETERMINING
A53: IN CONTACT WITH WATER IN THE SPRAY TANK. | C53: THE APPROPRIATE START DATE TAKING INTO CONSIDERATION
C54: ACTUAL WEED GROWTH AND WEATHER CONDITIONS. THE
A55: ALL SPRAY TANKS SHALL HAVE ACCURATE CALIBRATION DEVICES | C55: CONTRACTOR SHALL NOTIFY THE ENGINEER AT LEAST 3 DAYS
A56: AND METHODS OF CALIBRATION. THE CONTRACTOR WILL BE REQUIRED | C56: PRIOR TO BEGINNING WORK. ALL LOCATIONS SHALL HAVE AN
A57: TO MEASURE THE SPRAY TANK CONTENTS AT VARIOUS TIMES | C57: INITIAL APPLICATION COMPLETED WITHIN 60 DAYS FROM THE
A58: AS REQUESTED BY THE ENGINEER. FOR OPERATIONS OCCURING ON A | C58: START DATE. LIQUIDATED DAMAGES SHALL BE ASSESSED IN
A59: MULTI-LANE HIGHWAY WITH SPEEDS OF 45 MPH OR HIGHER SHALL | C59: ACCORDANCE WITH CMS SECTION 108.07 FOR EACH CALENDAR
A60: REQUIRE A SHADOW VEHICLE WITH A TRUCK-MOUNTED ATTENUATOR | C60: DAY PAST THE INITIAL APPLICATION COMPLETION DATE. ANY
A61: AS SPECIFIED IN CMS 614.03 | C61: RE-SPRAY WORK, AS DETERMINED BY THE INITIAL INSPECTION,
C62: SHALL BE COMPLETED PRIOR TO THE FINAL COMPLETION DATE
A63: DEMONSTRATION OF APPLICATION METHOD AND EQUIPMENT | C63: OF 7/15/2025.
A65: PRIOR TO STARTING WORK, THE CONTRACTOR SHALL DEMONSTRATE, | C65: WORK SHALL BEGIN IN LAWRENCE COUNTY AND PROCEED
A66: TO THE SATISFACTION OF THE ENGINEER, HIS ABILITY TO PERFORM | C66: ACROSS THE COUNTIES IN A NORTHERLY DIRECTION.
A67: AND MAINTAIN PROPER APPLICATION METHODS. THIS DEMONSTRATION
A68: SHALL BE CONDUCTED OFF THE ROADWAY AND DEMONSTRATE THE
A69: CONTRACTOR’S METHOD(S) OF APPLICATION FOR ALL TYPES OF
A70: TREATMENT AREAS.
A72: THE DEMONSTRATION SHALL BE PERFORMED FOR EACH PIECE OF
A73: APPLICATION EQUIPMENT USED ON THE PROJECT AND INCLUDE
A74: CALIBRATION OF THE ELECTRONIC SPRAY CONTROLLER AND ANY
A75: OTHER MEASURING OR MONITORING DEVICES. IF THE CONTRACTOR
A76: PROPOSES TO ADD ADDITIONAL APPLICATION EQUIPMENT TO THE
A77: PROJECT IN PROGRESS, IT SHALL BE SUCCESSFULLY DEMONSTRATED
A78: BEFORE USE.

Sheet 5-NOTES (2)
A1: GENERAL NOTES
D2: 614 MAINTAINING TRAFFIC
A3: CONDITIONS OF WORK | C3: METHOD OF PAYMENT
D4: TRAFFIC SHALL BE MAINTAINED IN ACCORDANCE WITH THIS PLAN, 614
A5: NO APPLICATION SHALL BEGIN WITHOUT APPROVAL OF THE | C5: METHOD OF PAYMENT SHALL BE THE NUMBER OF LINEAR MILES | D5: AND THE OMUTCD. THE FLASHING ARROW PANEL, INCLUDING
A6: ENGINEER. NO APPLICATION SHALL OCCUR ON SUNDAYS OR LEGAL | C6: OF GUARDRAIL SPRAYED TIMES THE PERCENT OF KILL ACHIEVED. | D6: CAUTION BAR MODE, SHALL NOT BE USED ON TWO LANE, TWO WAY
A7: HOLIDAYS, UNLESS PRIOR WRITTEN APPROVAL IS OBTAINED FROM | C7: THE COUNTY MANAGERS SHALL REVIEW ALL ROADS WITHIN | D7: ROADWAYS. ALL APPLICATION OPERATIONS SHALL BE PERFORMED
A8: THE ENGINEER, OR IN AREAS MAINTAINED AS A LAWN. IF AN AREA IS | C8: THEIR COUNTIES TO DETERMINE THE PERCENT KILL ACHIEVED. | D8: USING THE TRAFFIC CONTROL FOR HERBICIDAL SPRAYING
A9: UNTREATED FOR ANY REASON, IT MUST BE REPORTED TO THE | C9: THIS REVIEW SHALL TAKE PLACE BETWEEN 15 TO 21 DAYS | D9: OPERATIONS SHOWN IN SHEET 7. ALL NURSE TRUCKS AND OTHER
A10: ENGINEER. NO APPLICATION SHALL OCCUR WHEN WIND SPEED | C10: AFTER APPLICATION. ANY GUARDRAIL SECTION ON THE HIGHWAY | D10: PROJECT VEHICLES SHALL BE EQUIPPED, AS A MINIMUM, WITH TWO
A11: EXCEEDS 5 MPH OR WHEN RAIN IS EXPECTED WITHIN THE RAINFAST | C11: THAT DOES NOT PRESENT A 100% KILL ACHIEVED SHALL BE | D11: 360 DEGREE YELLOW STROBE FLASHER VISIBLE TO TRAFFIC. TRAFFIC
A12: PERIOD OF THE HERBICIDE. IF RAINFALL OCCURS DURING THE | C12: REVIEWED BY THE HIGHWAY MANAGEMENT ADMINISTRATOR. | D12: CONTROL SHALL BE IN PLACE AND OPERATING AT ALL TIMES WHEN
A13: RAINFAST PERIOD, AS DETERMINED BY THE ENGINEER, THE | D13: A PROJECT VEHICLE OCCUPIES ANY PORTION OF THE ROADWAY
A14: CONTRACTOR SHALL RETREAT AFFECTED AREAS AT HIS EXPENSE. | C14: A 90-100 PERCENT KILL SHALL BE CONSIDERED 100 PERCENT | D14: OR SHOULDER.
A15: DO NOT MAKE APPLICATIONS WHEN CIRCUMSTANCES FAVOR | C15: ACHIEVEMENT, 70-90 PERCENT KILL SHALL BE CONSIDERED
A16: MOVEMENT FROM TREATMENT AREAS. DO NOT CONTAMINATE | C16: 75 PERCENT ACHIEVEMENT AND LESS THAN 70 PERCENT SHALL
A17: WATER INTENDED FOR IRRIGATION OR DOMESTIC PURPOSES. | C17: BE CONSIDERED 0 PAY FACTOR. COUNTY ACHIEVEMENT SHALL
A18: TO AVOID INJURY TO CROPS OR OTHER DESIRABLE PLANTS, DO NOT | C18: BE THE AVERAGE OF EACH ROUTE, ADDED TOGETHER,
A19: TREAT OR ALLOW SPRAY DRIFT OR RUN-OFF TO FALL ONTO THESE | C19: AVERAGED, AND THAT NUMBER USED AS THE COUNTY'S
A20: AREAS. FOLLOW LABEL INSTRUCTIONS FOR ALL MATERIALS | C20: PERCENT ACHIEVEMENT.
A21: APPLIED ON THIS PROJECT.
C22: PAY FACTOR TABLE
A23: NOTE FOR INFORMATION ONLY: THERE ARE 35,000 MORE OR LESS
A24: SIGNPOSTS, DELINEATORS AND LIGHT POLES TO BE SPRAYED | C24: PERCENT OF KILL ACHIEVED PAY FACTOR
A25: AS PER SPRAY DETAILS. | C25: 100%-90% 1
C26: 89.9%-70% 0.75
A27: COOPERATION BETWEEN CONTRACTORS: THE CONTRACTOR IS | C27: LESS THAN 70% 0
A28: REFERRED TO CMS 105.08.
C29: THE COST FOR SPRAYING ALL SIGN POSTS, DELINEATORS AND
A30: NOTE: COMMUNICATION MUST BE PROVIDED BY THE CONTRACTOR IN | C30: LIGHT POLES SHALL BE INCLUDED IN THE UNIT PRICE BID FOR
A31: ORDER THAT THE ENGINEER MAY CONTACT HIM OR HER ON A | C31: ITEM SPECIAL - HERBICIDE SPRAYING, GUARDRAIL.
A32: REGULAR BASIS. THIS MAY INCLUDE BUT NOT LIMITED TO A CELLULAR
A33: PHONE NUMBER, PAGER OR DAILY REPORTS TO THE ENGINEER’S | C33: NOTE: THE CONTRACTOR WILL BE REQUIRED TO RE-SPRAY ANY
A34: OFFICE AS TO THE CONTRACTOR’S LOCATION. PROVISIONS | C34: GUARDRAIL SECTION, SIGNPOST, DELINEATOR, OR LIGHT POLE
A35: DESCRIBED ABOVE SHALL BE INCIDENTAL TO THE OPERATION. | C35: THAT IS DETERMINED TO BE A 0 PAY FACTOR. THE CONTRACTOR,
C36: AT HIS DISCRETION, UPON NOTIFICATION OF THE DISTRICT
A37: ITEM SPECIAL — HERBICIDAL SPRAYING, GUARDRAIL | C37: CONSTRUCTION ENGINEER, MAY TOUCH-UP THE WORK AREA
C38: DURING THE LIFE OF THE PROJECT, PRIOR TO FINAL COMPLETION
A39: A SPRAY MIXTURE, USING WATER AS A CARRIER, SHALL BE USED. | C39: DATE. THE TOUCH-UP HERBICIDE SHALL BE THE SAME
A40: THE HERBICIDES AND RATES OF APPLICATION SHALL BE DETERMINED | C40: FORMULATION AS ORIGINALLY APPROVED. CONTRACTOR MUST
A41: BY THE CONTRACTOR AS LONG AS THE LABEL RECOMMENDATIONS | C41: FOLLOW HERBICIDE LABEL DIRECTIONS FOR REAPPLICATION.
A42: ARE FOLLOWED. THE SPRAY MIXTURE WILL BE COMPOSED OF BOTH
A43: PRE AND POST EMERGENT HERBICIDES THAT WILL CONTROL
A44: VEGETATION FOR ONE GROWING SEASON. NO RESTRICTED HERBICIDE
A45: (AS DEFINED BY O.R.C. 921.01) AND NO HERBICIDE UNDER
A46: INVESTIGATION BY THE EPA SHALL BE USED. THE HERBICIDE SHALL
A47: BE LABELED FOR USE ON RIGHTS-OF-WAY, INDUSTRIAL SITES AND
A48: NON-CROP AREAS. THE HERBICIDE RATE DETERMINED BY THE
A49: CONTRACTOR MUST BE GIVEN TO THE ENGINEER FOR APPROVAL,
A50: PRIOR TO APPLICATION OF THE SPRAY. IF THE MIXTURE IS CHANGED,
A51: NOTICE MUST BE GIVEN TO THE ENGINEER FOR APPROVAL.
A53: THE SPRAY MIXTURE SHALL BE APPLIED IN AN EVEN PATTERN
A54: AS SHOWN IN THE SPRAY DETAILS.
A56: A NON-IONIC SURFACTANT WITH AN ACTIVE INGREDIENT ABOVE
A57: 80% SHALL BE ADDED TO THE SPRAY MIXTURE AT LABEL RATES.
A58: A POLYMER SPRAY ADDITIVE DRIFT CONTROL AGENT SHALL
A59: ALSO BE ADDED TO THE MIXTURE AS THE SPRAY TANK IS BEING
A60: FILLED AND BEFORE THE HERBICIDE IS ADDED TO THE TANK.
A62: PERSONAL PROTECTIVE EQUIPMENT SHALL BE PROVIDED AND
A63: WORN AS REQUIRED BY THE HERBICIDE LABEL. MSDA SHEETS
A64: FOR THE HERBICIDE BEING SPRAYED, MUST BE IN THE SPRAY
A65: VEHICLE.
A67: NO SPRAYING SHALL BE APPLIED TO AREAS WHERE ASPHALT IS
A68: PLACED UNDER THE GUARDRAIL.
A70: HERBICIDE APPLICATIONS APPLIED WHERE CHEMICAL CAN MOVE
A71: EASILY OFF TARGET, SUCH AS ALONG CONCRETE CURBING, AND
A72: INTO A WATERWAY MUST BE DONE WITH AN AQUATICALLY
A73: APPROVED SPRAY MIX. AREAS, AS DETERMINED BY THE
A74: ENGINEER, THAT ARE PRONE TO EROSION ARE NOT TO BE
A75: SPRAYED WITH A SOIL STERILANT.

Sheet 6-NOTES (3)
A1: GENERAL NOTES
A3: CONTROL OF PROHIBITED NOXIOUS WEEDS
A4: AND NON-NATIVE INVASIVE PLANTS
A6: 100 HOURS FOR CONTROL OF PROHIBITED NOXIOUS WEEDS AND
A7: NON-NATIVE INVASIVE PLANTS (LISTED IN THE TABLES BELOW) ARE
A8: INCLUDED IN THIS PROJECT, AS DIRECTED BY THE ENGINEER. THE
A9: AWARDED VENDOR SHALL: IDENTIFY THE TARGETED PLANTS WITHIN | D9: MAINTENANCE OF TRAFFIC
A10: ODOT RIGHT OF WAY (ASSUME ODOT RIGHT OF WAY TO EXTEND 30
A11: FEET PERPENDICULAR TO THE CENTERLINE OF THE HIGHWAY);
A12: EMPLOY MANUFACTURER’S RECOMMENDED HERBICIDES AND
A13: TECHNIQUES TO CONTROL EACH SPECIES; AND CREATE A LOGSHEET
A14: WHICH INCLUDES THE SPECIES NAME, THE PROCEDURE USED FOR
A15: CONTROL, THE COUNTY-ROUTE-SECTION LOCATION WHERE THE
A16: SPECIES IS FOUND, THE ARRIVAL TIME AT THE SITE AND THE
A17: DEPARTURE TIME FROM THE SITE. THE LOGS SHALL BE SENT TO
A18: DAVE WALTON UPON COMPLETION OF THE PROJECT AT THE
A19: FOLLOWING ODOT FACILITY, 650 EASTERN AVENUE, CHILLICOTHE,
A20: OHIO 45601.
A22: SPRAYING FOR NOXIOUS WEEDS SHALL NOT BEGIN UNTIL AFTER
A23: 5/15/2025.
A25: METHOD OF PAYMENT SHALL BE THE HOURS SPENT SPRAYING
A26: EACH SITE. TIME SPENT FOR MOBILIZATION AND EQUIPMENT
A27: PREPARATION AND CALIBRATION ARE NOT INCLUDED IN THE
A28: PAYABLE HOURS.
A30: 100 HOURS CARRIED TO GENERAL SUMMARY
A32: PROHIBITED NOXIOUS WEEDS COMMON NAME
A34: APPLE OF PERU
A35: CANADA THISTLE
A36: CRESSLEAF
A37: GROUNDSEL
A38: GIANT HOGWEED
A39: GRAPEVINES
A40: JOHNSON GRASS
A41: KOCHIA
A42: MARESTAIL
A43: MILE-A-MINUTE WEED
A44: MUSK THISTLE
A45: OXEYE DAISY
A46: PALMER AMARANTH
A47: POISON HEMLOCK
A48: PURPLE LOOSESPTRIFE
A49: RUSSIAN THISTLE
A50: SHATTER CANE
A51: WILD CARROT
A52: WILD MUSTARD
A53: WILD PARSNIP
A55: NON—NATIVE INVASIVE PLANT SPECIES COMMON NAME
A57: AUTUMN-OLIVE
A58: BUCKTHORN, GLOSSY
A59: BUCKTHORN, EUROPEAN OR COMMON
A60: COMMON REED GRASS
A61: GARLIC MUSTARD
A62: HONEYSUCKLE, AMUR
A63: HONEYSUCKLE, JAPANESE
A64: HONEYSUCKLE, MORROW
A65: HONEYSUCKLE, TATARIAN
A66: JAPANESE KNOTWEED
A67: MULTIFLORA ROSE
A68: PURPLE LOOSESTRIFE
A69: REED CANAR GRASS

Sheet 7- MT NOTES
A1: MAINTENANCE OF TRAFFIC
A3: MAINTENANCE OF TRAFFIC | C3: MAINTENANCE OF TRAFFIC, CON'T
A4: A MINIMUM OF ONE LANE OF TRAFFIC IN EACH DIRECTION | C4: MAINTAIN TRAFFIC AS FOLLOWS:
A5: SHALL BE MAINTAINED AT ALL TIMES BY USE OF THE EXISTING | C5: 1. FOR STATIONARY OPERATIONS:
A6: PAVEMENT. | C6: a. IN ACCORDANCE WITH OHIO MANUAL OF UNIFORM
A7: LENGTH AND DURATION OF THE LANE CLOSURES AND | C7: TRAFFIC DEVICES FIGURE 6H-1 FOR WORK BEYOND THE
A8: RESTRICTIONS SHALL BE AT THE APPROVAL OF THE ENGINEER. | C8: SHOULDERS (TA-1) OR FIGURE 6H-3 FOR WORK ON THE
A9: IT IS THE INTENT TO MINIMIZE THE IMPACT TO THE TRAVELING | C9: SHOULDER (TA-3) AS APPLICABLE.
A10: PUBLIC. LANE CLOSURES OR RESTRICTIONS OVER SEGMENTS | C10: i. ON A TWO-LANE TWO-WAY ROADWAY MAINTAIN
A11: OF THE PROJECT IN WHICH NO WORK IS ANTICIPATED WITHIN | C11: TRAFFIC BY FLAGGERS IN ACCORDANCE WITH
A12: A REASONABLE TIME FRAME, AS DETERMINED BY THE ENGINEER, | C12: STANDARD DRAWING MT-97.10, ONLY IF REQUIRED
A13: SHALL NOT BE PERMITTED. THE LEVEL OF UTILIZATION OF | C13: TO PROGRESS WORK.
A14: MAINTENANCE OF TRAFFIC DEVICES SHALL BE COMMENSURATE | C14: ii. ON MULTI LANE ROADWAY MAINTAIN TRAFFIC WITH
A15: WITH THE WORK IN PROGRESS. | C15: CLOSURES IN ACCORDANCE WITH STANDARD
C16: DRAWING MT-95.30, MT-95.31, OR MT-95.32 ONLY IF
A17: ALL TRAFFIC CONTROL SIGNS, DEVICES, AND OPERATION | C17: REQUIRED TO PROGRESS WORK.
A18: USED FOR THE TEMPORARY MAINTENANCE AND CONTROL | C18: 2. FOR MOVING OPERATIONS:
A19: SHALL AT ALL TIMES BE SUBJECT TO THE DIRECTION AND | C19: a. IN ACCORDANCE WITH THE OHIO MANUAL OF UNIFORM
A20: CONTROL OF THE ENGINEER IN RESPECT TO THEIR CONDITION, | C20: TRAFFIC DEVICES FIGURE 6H-4 FOR
A21: LOCATIONS, AND TIMES OF APPLICATION. VISIBLE SIGNS AND | C21: SHORT-DURATION OR MOBILE OPERATIONS ON THE
A22: DEVICES SHALL CONSISTENTLY REFLECT THE CONDITIONS | C22: SHOULDER (TA-4) OR FIGURE 6H-17 FOR MOBILE
A23: ACTUALLY EXISTING. INAPPROPRIATE SIGNS AND DEVICES | C23: OPERATIONS ON TWO-LANE ROAD (TA-17) OR FIGURE
A24: SHALL BE REMOVED OR COVERED. THE FLASHING ARROW PANEL, | C24: 6H-35 FOR MOBILE OPERATIONS ON MULTILANE ROAD
A25: INCLUDING CAUTION BAR MODE, SHALL NOT BE USED ON TWO | C25: TA-35 AS APPLICABLE.
A26: LANE, TWO-WAY ROADWAYS. | C26: i. ALL NURSE TRUCKS AND OTHER PROJECT VEHICLES
C27: SHALL BE EQUIPPED, AS A MINIMUM, WITH ONE 360
A28: FOR OPERATIONS OCCURING ON A MULTI-LANE HIGHWAY WITH | C28: DEGREE YELLOW STROBE FLASHER VISIBLE TO
A29: SPEEDS OF 45 MPH OR HIGHER, SHADOW VEHICLE(S) SHALL BE | C29: TRAFFIC THAT SHALL BE IN PLACE AND OPERATING
A30: REQUIRED WITH A TRUCK-MOUNTED ATTENUATOR AS SPECIFIED | C30: AT ALL TIMES WHEN A PROJECT VEHICLE OCCUPIES
A31: IN CMS 614.03. | C31: ANY PORTION OF THE ROADWAY OR SHOULDER.
C32: ii. THE CONTRACTOR SHALL FURNISH AND MAINTAIN
A33: THE CONTRACTOR SHALL BE RESPONSIBLE FOR FURNISHING, | C33: TWO WAY RADIO EQUIPMENT NECESSARY FOR THE
A34: ERECTING OR REPLACING, MAINTAINING, AND REMOVING ALL | C34: VOICE COMMUNICATION BETWEEN THE CONTRAC-
A35: TEMPORARY TRAFFIC CONTROL SIGNS AND DEVICES THAT MAY | C35: TOR'S APPLICATION EQUIPMENT AND THE
A36: BE REQUIRED BY THE CMS AND/OR THE OHIO MANUAL FOR | C36: INSPECTOR'S VEHICLE AT ALL TIMES DURING
A37: UNIFORM TRAFFIC CONTROL DEVICES FOR THE MAINTENANCE | C37: OPERATION. THIS EQUIPMENT SHALL BE
A38: OF THROUGH TRAFFIC. | C38: CAPABLE OF TRANSMITTING AND RECEIVING
C39: NORMAL VOICE COMMUNICATION FOR A
A40: NO WORK SHALL BE PERFORMED AND ALL EXISTING LANES | C40: DISTANCE OF AT LEAST FOUR MILES, THIS
A41: SHALL BE OPEN TO TRAFFIC DURING DESIGNATED HOLIDAYS OR | C41: EQUIPMENT SHALL BE INCLUDED IN THE LUMP
A42: EVENTS: | C42: SUM PRICE FOR ITEM 614, MAINTAINING TRAFFIC.
A43: MEMORIAL DAY
A44: JUNETEENTH
A45: FOURTH OF JULY
A47: THE PERIOD OF TIME THAT THE LANES ARE TO BE OPEN
A48: DEPENDS ON THE DAY OF THE WEEK ON WHICH THE HOLIDAY OR
A49: EVENT FALLS. THE FOLLOWING SCHEDULE SHALL BE USED TO
A50: DETERMINE THIS PERIOD:
A52: DAY OF THE WEEK TIME ALL LANES MUST BE OPEN TO TRAFFIC
A53: SUNDAY 12:00 NOON FRIDAY THRU 12:00 NOON MONDAY
A54: MONDAY 12:00 NOON FRIDAY THRU 12:00 NOON TUESDAY
A55: TUESDAY 12:00 NOON MONDAY THRU 12:00 NOON WED.
A56: WEDNESDAY 12:00 NOON TUESDAY THRU 12:00 NOON THURS.
A57: THURSDAY 12:00 NOON WED. THRU 12:00 NOON FRIDAY
A58: FRIDAY 12:00 NOON THURS. THRU 12:00 NOON MONDAY
A59: SATURDAY 12:00 NOON FRIDAY THRU 12:00 NOON MONDAY
A61: SHOULD THE CONTRACTOR FAIL TO MEET ANY OF THESE
A62: REQUIREMENTS, THE CONTRACTOR SHALL BE ASSESSED A
A63: DISINCENTIVE IN THE AMOUNT OF $50 FOR EACH MINUTE THE
A64: ABOVE DESCRIBED LANE CLOSURE RESTRICTIONS ARE
A65: VIOLATED.

Sheet 8- MT NOTES
A1: MAINTENANCE OF TRAFFIC
A3: NOTIFICATION OF TRAFFIC RESTRICTIONS
A4: THROUGHOUT THE DURATION OF THE PROJECT, THE CONTRACTOR
A5: CONTRACTOR SHALL NOTIFY THE PROJECT ENGINEER IN
A6: WRITING OF ALL TRAFFIC RESTRICTIONS AND UPCOMING
A7: MAINTENANCE OF TRAFFIC CHANGES. THE CONTRACTOR
A8: SHALL ENSURE THE WRITTEN NOTIFICATION IS SUBMITTED IN A
A9: TIMELY MANNER TO ALLOW THE PROJECT ENGINEER TO MEET
A10: THE REQUIRED TIME FRAMES SET FORTH IN THE TABLE BELOW TO
A11: INFORM THE SPECIAL HAULING PERMITS SECTION
A12: (HAULING.PERMITS@DOT.OHIO.GOV) AND THE DISTRICT PUBLIC
A13: INFORMATION OFFICE (D09.PIO@DOT.OHIO.GOV). THIS NOTIFICATION
A14: SHALL BE RECEIVED BY THE PROJECT ENGINEER PRIOR TO THE
A15: PHYSICAL SETUP OF ANY APPLICABLE SIGNS OR MESSAGE
A16: BOARDS.
A18: INFORMATION SHOULD INCLUDE, BUT NOT LIMITED TO, ALL
A19: CONSTRUCTION ACTIVITIES THAT IMPACT OR INTERFERE WITH
A20: TRAFFIC AND SHALL LIST THE SPECIFIC LOCATION, TYPE OF WORK,
A21: ROAD STATUS, DATE AND TIME OF RESTRICTION, DURATION OF
A22: RESTRICTION, NUMBER OF LANES MAINTAINED, NUMBER OF
A23: LANES CLOSED, MINIMUM VERTICAL CLEARANCE, MINIMUM WIDTH
A24: OF DRIVABLE PAVEMENT, DETOUR ROUTS, IF APPLICABLE, AND
A25: ANY OTHER INFORMATION REQUESTED BY THE PROJECT
A26: ENGINEER.
A28: NOTIFICATION OF TRAFFIC RESTRICTIONS TIME TABLE
A29: ITEM DURATION OF NOTICE DUE TO
A30: CLOSURE PERMITS & PIO
A32: RAMP & ≥ 2 WEEKS 21 CALENDAR DAYS
A33: ROAD PRIOR TO CLOSURE
A34: CLOSURES
A35: > 12 HRS & 14 CALENDAR DAYS
A36: < 2 WKS PRIOR TO CLOSURE
A38: <12 HRS 4 BUSINESS DAYS
A39: PRIOR TO CLOSURE
A41: LANE ≥ 2 WEEKS 14 CALENDAR DAYS
A42: CLOSURES & PRIOR TO CLOSURE
A43: RESTRICTIONS
A44: < 2 WKS 5 BUSINESS DAYS
A45: PRIOR TO CLOSURE
A47: START OF N/A 14 CALENDAR DAYS
A48: CONSTRUCTION PRIOR TO
A49: & TRAFFIC IMPLEMENTATION
A50: PATTERN
A51: CHANGES
A54: ANY UNFORSEEN CONDITIONS NOT SPECIFIED IN THE PLANS
A55: REQUIRING TRAFFIC RESTRICTIONS SHALL ALSO BE
A56: REPORTED TO THE PROJECT ENGINEER USING THE
A57: NOTIFICATION TIME TABLE.

Sheet 9-GEN SUM
B1: GENERAL SUMMARY
B2: SHEET NUMBER | K2: PART. | L2: ITEM | M2: ITEM EXT. | N2: GRAND | O2: UNIT | P2: DESCRIPTION | Q2: SEE SHEET NO.
C4: 6 | D4: 10 | E4: 11 | F4: 12 | G4: 13 | H4: 14 | K4: 01/NFA/44 | N4: TOTAL
L7: =SUM(B7:J7) -> 0 | P7: ITEMS OF WORK
C8: 100 | K8: 100 | L8: SPECIAL | M8: 69098600 | N8: 100 | O8: HOUR | P8: MISC.: CONTROL OF PROHIBITED NOXIOUS WEEDS AND NON-NATIVE INVASIVE SPECIES | Q8: 6
D9: ='10-ADA'!F43 -> 47 | E9: ='11-BRO'!F43 -> 43 | F9: ='12-LAW'!F40 -> 73 | G9: ='13-PIK'!F42 -> 54 | H9: ='14-ROS'!F47 -> 80 | K9: =SUM(B9:I9) -> 297 | L9: SPECIAL | M9: 69142000 | N9: =K9 -> 297 | O9: MILE | P9: HERBICIDAL SPRAYING, NON SELECTIVE VEGETATION CONTROL, GUARDRAIL, SIGNS, AND DELINEATORS | Q9: 5
P11: INCIDENTALS
K12: 1 | L12: 614 | M12: 11000 | N12: LUMP | P12: MAINTAINING TRAFFIC
K13: 1 | L13: 624 | M13: 10000 | N13: LUMP | P13: MOBILIZATION

Sheet 10-ADA
B1: HERBICIDAL SPRAYING NONSELECTIVE VEGETATION CONTROL DATA FOR ADAMS COUNTY
B3: COUNTY | C3: ROUTE | D3: SLM | F3: GUARD RAIL SPRAYED | G3: CONCRETE DIVIDER SPRAYED | H3: CURB SPRAYED | I3: TOTAL TREATED | M3: COMMENTS
D7: FROM | E7: TO | F7: MILE | G7: MILE | H7: MILE | I7: ACRES
D8: SLM | E8: SLM
B9: ADA | C9: 32 | D9: 0 | E9: 24.95 | F9: 6.64 | G9: 0.2 | I9: =(H9*5280*42/12)/43560+(F9*5280*40/12)/43560+(G9*5280*2)/43650 -> 2.731213163 | M9: BROWN C.L. TO PIKE C.L.
B10: ADA | C10: 41 | D10: 0 | E10: 10.76 | F10: 1.2 | I10: 0.4848484848 | M10: BROWN C.L. TO WEST UNION CORP.
B11: ADA | C11: 41 | D11: 13.9 | E11: 25.51 | F11: 3.55 | I11: 1.434343434 | M11: WEST UNION CORP. TO PEEBLES CORP.
B12: ADA | C12: 41 | D12: 26.75 | E12: 34.46 | F12: 1.28 | I12: 0.5171717172 | M12: PEEBLES CORP. TO HIGHLAND C.L.
B13: ADA | C13: 52 | D13: 0 | E13: 6.79 | F13: 3.34 | I13: 1.349494949 | M13: BROWN C.L. TO MANCHESTER CORP.
B14: ADA | C14: 52 | D14: 8.27 | E14: 29.27 | F14: 10.58 | I14: 4.274747475 | M14: MANCHESTER CORP. TO SCIOTO C.L.
B15: ADA | C15: 73 | D15: 0 | E15: 15.58 | F15: 3.84 | I15: 1.551515152 | M15: HIGHLAND C.L. TO SCIOTO C.L.
B16: ADA | C16: 125 | D16: 0 | E16: 8.19 | F16: 2.01 | I16: 0.8121212121 | M16: BROWN C.L. TO WEST UNION CORP.
B17: ADA | C17: 125 | D17: 10.19 | E17: 26.08 | F17: 6.33 | I17: 2.557575758 | M17: WEST UNION CORP. TO SCIOTO C.L.
B18: ADA | C18: 136 | D18: 0.57 | E18: 18.63 | F18: 1.03 | I18: 0.4161616162 | M18: MANCHESTER CORP. TO WINCHESTER CORP.
B19: ADA | C19: 136 | D19: 20.35 | E19: 25.14 | F19: 0.31 | I19: 0.1252525253 | M19: WINCHESTER CORP. TO HIGHLAND C.L.
B20: ADA | C20: 137 | D20: 0.2 | E20: 3.56 | F20: 0.21 | I20: 0.08484848485 | M20: S.R. 136 TO S.R. 247
B21: ADA | C21: 247 | D21: 0 | E21: 6.68 | F21: 0.35 | I21: 0.1414141414 | M21: OHIO RIVER TO WEST UNION CORP.
B22: ADA | C22: 247 | D22: 7.98 | E22: 16.88 | F22: 1.9 | I22: 0.7676767677 | M22: WEST UNION CORP. TO SEAMAN CORP.
B23: ADA | C23: 247 | D23: 18.13 | E23: 23.98 | F23: 1.02 | I23: 0.4121212121 | M23: SEAMAN CORP. TO HIGHLAND C.L.
B24: ADA | C24: 348 | D24: 0 | E24: 13.55 | F24: 1.23 | I24: 0.496969697 | M24: BEGIN S.R. 125 TO SCIOTO C.L.
B25: ADA | C25: 770 | D25: 0.37 | E25: 10.52 | F25: 0.92 | I25: 0.3717171717 | M25: SEAMAN CORP. TO S.R. 73
B26: ADA | C26: 781 | D26: 0 | E26: 10.99 | F26: 0.71 | I26: 0.2868686869 | M26: BEGIN S.R. 41 TO S.R. 348
B41: TOTALS FOR THIS SHEET | F41: =SUM(F9:F32) -> 46.45 | G41: =SUM(G9:G32) -> 0.2 | I41: =SUM(I9:I32) -> 18.81606165
B42: SUB-TOTAL | F42: =SUM(F41:H41) -> 46.65
B43: TOTALS CARRIED TO GENERAL SUMMARY | F43: =ROUNDUP(F42,0) -> 47

Sheet 11-BRO
B1: HERBICIDAL SPRAYING NONSELECTIVE VEGETATION CONTROL DATA FOR BROWN COUNTY
B3: COUNTY | C3: ROUTE | D3: SLM | F3: GUARD RAIL SPRAYED | G3: CONCRETE DIVIDER SPRAYED | H3: CURB SPRAYED | I3: TOTAL TREATED | M3: COMMENTS
D7: FROM | E7: TO | F7: MILE | G7: MILE | H7: MILE | I7: ACRES
D8: SLM | E8: SLM
B9: BRO | C9: 32 | D9: 0 | E9: 19.83 | F9: 0.3 | G9: 0.04 | I9: =(H9*5280*42/12)/43560+(F9*5280*40/12)/43560+(G9*5280*2)/43650 -> 0.1308890972 | M9: CLERMONT C.L. TO ADAMS C.L.
B10: BRO | C10: 41 | D10: 0.35 | E10: 4.48 | F10: 1.57 | I10: 0.6343434343 | M10: ABERDEEN CORP. TO ADAMS C.L.
B11: BRO | C11: 50 | D11: 0 | E11: 4.53 | F11: 1.43 | I11: 0.5777777778 | M11: BROWN C.L. TO FAYETTEVILLE CORP.
B12: BRO | C12: 50 | D12: 5.27 | E12: 8.38 | F12: 0.6 | I12: 0.2424242424 | M12: FAYETTEVILLE CORP. TO HIGHLAND C.L.
B13: BRO | C13: 52 | D13: 0 | E13: 4.25 | F13: 1.83 | I13: 0.7393939394 | M13: CLERMONT C.L. TO HIGGINSPORT CORP.
B14: BRO | C14: 52 | D14: 5.05 | E14: 11.61 | F14: 4.08 | G14: 0.07 | I14: 1.665419556 | M14: HIGGINSPORT. TO RIPLEY CORP.
B15: BRO | C15: 52 | D15: 14.99 | E15: 17.42 | F15: 1.92 | I15: 0.7757575758 | M15: RIPLEY CORP. TO ABERDEEN CORP.
B16: BRO | C16: 52 | D16: 21.26 | E16: 23.78 | F16: 1.72 | I16: 0.6949494949 | M16: ABERDEEN CORP. TO ADAMS C.L.
B17: BRO | C17: 62 | D17: 8.64 | E17: 17.68 | F17: 7.27 | G17: 0.04 | I17: 2.947050713 | M17: RIPLEY CORP. TO RUSSELVILLE CORP.
B18: BRO | C18: 62 | D18: 18.86 | E18: 30.45 | F18: 2.74 | I18: 1.107070707 | M18: RUSSELVILLE CORP. TO HIGHLAND C.L.
B19: BRO | C19: 68 | D19: 11.67 | E19: 18.91 | F19: 1.83 | I19: 0.7393939394 | M19: U.S. 62 TO GEORGETOWN CORP.
B20: BRO | C20: 68 | D20: 20.89 | E20: 27.7 | F20: 1.44 | G20: 0.02 | I20: 0.5866566698 | M20: GEORGETOWN CORP. TO MT. ORAB CORP.
B21: BRO | C21: 68 | D21: 31.46 | E21: 40.74 | F21: 1.03 | I21: 0.4161616162 | M21: MT. ORAB CORP. TO FAYETTEVILLE CORP.
B22: BRO | C22: 68 | D22: 41.47 | E22: 45.88 | F22: 1.7 | I22: 0.6868686869 | M22: FAYETTEVILLE CORP. TO CLINTON C.L.
B23: BRO | C23: 123 | D23: 0 | E23: 3.46 | F23: 0.52 | I23: 0.2101010101 | M23: BEGIN S.R. 251 TO CLINTON C.L.
B24: BRO | C24: 125 | D24: 0 | E24: 2.54 | F24: 0.69 | I24: 0.2787878788 | M24: CLERMONT C.L. TO HAMMERSVILLE CORP.
B25: BRO | C25: 125 | D25: 3.87 | E25: 8.37 | F25: 0.91 | G25: 0.35 | I25: 0.4523503072 | M25: HAMMERSVILLE CORP. TO GEORGETOWN CORP.
B26: BRO | C26: 125 | D26: 10.43 | E26: 15.39 | F26: 0.63 | I26: 0.2545454545 | M26: GEORGETOWN CORP. TO RUSSELVILLE CORP.
B27: BRO | C27: 125 | D27: 16.17 | E27: 22.93 | F27: 2.25 | I27: 0.9090909091 | M27: RUSSELVILLE CORP. TO ADAMS C.L.
B28: BRO | C28: 131 | D28: 0 | E28: 7.76 | F28: 0.68 | I28: 0.2747474747 | M28: CLERMONT C.L. TO HIGHLAND C.L.
B29: BRO | C29: 134 | D29: 0 | E29: 0.34 | F29: 0 | I29: 0 | M29: S.R. 32 TO HIGHLAND C.L.
B30: BRO | C30: 221 | D30: 0.27 | E30: 7.55 | F30: 1.44 | G30: 0.02 | I30: 0.5866566698 | M30: HIGGINSPORT CORP. TO GEORGETOWN CORP.
B31: BRO | C31: 251 | D31: 0 | E31: 4.01 | F31: 0.36 | I31: 0.1454545455 | M31: BEGIN U.S. 50 TO CLINTON C.L.
B32: BRO | C32: 286 | D32: 0 | E32: 8.31 | F32: 0.66 | I32: 0.2666666667 | M32: CLERMONT C.L. TO HIGHLAND C.L.
B33: BRO | C33: 353 | D33: 0 | E33: 4.6 | F33: 0.58 | I33: 0.2343434343 | M33: BEGIN AT U.S. 62 TO S.R. 125
B34: BRO | C34: 505 | D34: 0.24 | E34: 10.39 | F34: 1.04 | I34: 0.4202020202 | M34: HIGGINSPORT CORP. TO S.R. 125
B35: BRO | C35: 756 | D35: 0 | E35: 1.97 | F35: 0 | I35: 0 | M35: CLERMONT C.L. TO S.R. 505
B36: BRO | C36: 763 | D36: 0 | E36: 12.7 | F36: 2.16 | I36: 0.8727272727 | M36: BEGIN AT S.R. 41 TO S.R. 125
B37: BRO | C37: 774 | D37: 0 | E37: 3.04 | F37: 0 | I37: 0 | M37: CLERMONT C.L. TO HAMMERSVILLE CORP.
B38: BRO | C38: 774 | D38: 3.38 | E38: 10.92 | F38: 0.38 | I38: 0.1535353535 | M38: HIGGINSPORT CORP. TO U.S. 68
B41: TOTALS FOR THIS SHEET | F41: =SUM(F9:F40) -> 41.76 | G41: =SUM(G9:G40) -> 0.54 | I41: =SUM(I9:I40) -> 17.00336645
B42: SUB-TOTALS | F42: =SUM(F41:H41) -> 42.3
B43: TOTALS CARRIED TO GENERAL SUMMARY | F43: =ROUNDUP(F42,0) -> 43

Sheet 12-LAW
B1: HERBICIDAL SPRAYING NONSELECTIVE VEGETATION CONTROL DATA FOR LAWRENCE COUNTY
B3: COUNTY | C3: ROUTE | D3: SLM | F3: GUARD RAIL SPRAYED | G3: CONCRETE DIVIDER SPRAYED | H3: CURB SPRAYED | I3: TOTAL TREATED | L3: COMMENTS
D7: FROM | E7: TO | F7: MILE | G7: MILE | H7: MILE | I7: ACRES
D8: SLM | E8: SLM
B9: LAW | C9: 7 | D9: 0 | E9: 2.44 | F9: 2.3 | G9: 0.56 | I9: =(H9*5280*42/12)/43560+(F9*5280*40/12)/43560+(G9*5280*2)/43560 -> 1.065050505 | L9: 22.61 U.S. 52 TO CHESAPEAKE CORP. - INCLUDE RAMPS WITH SR 527
B10: LAW | C10: 7 | D10: 3.41 | E10: 13.67 | F10: 5.77 | G10: 0.03 | I10: =(H10*5280*42/12)/43560+(F10*5280*40/12)/43560+(G10*5280*2)/43560 -> 2.338585859 | L10: CHESAPEAKE CORP. TO ATHALIA CORP.
B11: LAW | C11: 7 | D11: 14.81 | E11: 19.18 | F11: 2.58 | I11: 1.042424242 | L11: ATHALIA CORP. TO GALLIA C.L.
B12: LAW | C12: 52 | D12: 0 | E12: 22.62 | F12: 18.91 | G12: 4.99 | I12: =(H12*5280*42/12)/43560+(F12*5280*40/12)/43560+(G12*5280*2)/43560 -> 8.85010101 | L12: SCIOTO C.L. TO W.V. STATE LINE. - INCLUDES ALL RAMPS AND SHOULDER CONCRETE BARRIER
B13: LAW | C13: 93 | D13: 1.06 | E13: 28.2 | F13: 17.15 | I13: 6.929292929 | L13: IRONTON CORP. TO JACKSON C.L.
B14: LAW | C14: 140 | D14: 0 | E14: 1.7 | F14: 0.86 | I14: 0.3474747475 | L14: SCIOTO C.L. TO JACKSON C.L.
B15: LAW | C15: 141 | D15: 0.97 | E15: 23.01 | F15: 5.41 | I15: 2.185858586 | L15: IRONTON CORP. TO GALLIA C.L.
B16: LAW | C16: 217 | D16: 0 | E16: 17.47 | F16: 2.07 | I16: 0.8363636364 | L16: S.R. 141 TO S.R. 7
B17: LAW | C17: 218 | D17: 0 | E17: 2.44 | F17: 0 | I17: 0 | L17: S.R. 217 TO GALLIA C.L.
B18: LAW | C18: 243 | D18: 1.55 | E18: 18.45 | F18: 2.05 | I18: 0.8282828283 | L18: COAL GROVE CORP. TO S.R. 7
B19: LAW | C19: 373 | D19: 0 | E19: 3.39 | F19: 0.11 | I19: 0.04444444444 | L19: S.R. 93 TO S.R. 93
B20: LAW | C20: 378 | D20: 0 | E20: 9.46 | F20: 0.7 | I20: 0.2828282828 | L20: S.R. 243 TO S.R. 141
B21: LAW | C21: 522 | D21: 0 | E21: 8.29 | F21: 3.03 | I21: 1.224242424 | L21: SCIOTO C.L. TO S.R. 93
B22: LAW | C22: 527 | D22: 0.4 | E22: 0.56 | F22: 0.58 | I22: 0.2343434343 | L22: CHESAPEAKE CORP. TO S.R. 7
B23: LAW | C23: 650 | D23: 0.03 | E23: 9.28 | F23: 2.54 | I23: 1.026262626 | L23: HANGING ROCK CORP. TO S.R. 522
B24: LAW | C24: 775 | D24: 0 | E24: 23.94 | F24: 3 | I24: 1.212121212 | L24: S.R. 7 TO GALLIA C.L.
B25: LAW | C25: 790 | D25: 0 | E25: 0.55 | F25: 0.01 | I25: 0.00404040404 | L25: S.R. 775 TO GALLIA C.L.
B38: TOTALS FOR THIS SHEET | F38: =SUM(F9:F32) -> 67.07 | G38: =SUM(G9:G32) -> 5.58 | H38: =SUM(H9:H32) -> 0 | I38: =SUM(I9:I32) -> 28.45171717
B39: SUB-TOTALS | F39: =SUM(F38:H38) -> 72.65
B40: TOTALS CARRIED TO THE GENERAL SUMMARY | F40: =ROUNDUP(F39,0) -> 73

Sheet 13-PIK
B1: HERBICIDAL SPRAYING NONSELECTIVE VEGETATION CONTROL DATA FOR PIKE COUNTY
B3: COUNTY | C3: ROUTE | D3: SLM | F3: GUARDRAIL SPRAYED | G3: CONCRETE DIVIDER SPRAYED | H3: CURB SPRAYED | I3: TOTAL TREATED | M3: COMMENTS
D7: FROM | E7: TO | F7: MILE | G7: MILE | H7: MILE | I7: ACRES
D8: SLM | E8: SLM
B9: PIK | C9: 23 | D9: 0 | E9: 7.08 | F9: 4.17 | I9: =(H9*5280*40/12)/43560+(F9*5280*40/12)/43560 -> 1.684848485 | M9: SCIOTO C.L. TO PIKETON CORP.
B10: PIK | C10: 23 | D10: 8.294 | E10: 11.61 | F10: 5.27 | M10: PIKETON CORP. TO WAVERLY CORP.
B11: PIK | C11: 23 | D11: 13.26 | E11: 16.28 | F11: 2.33 | I11: 0.9414141414 | M11: WAVERLY CORP. TO ROSS C.L.
B12: PIK | C12: 32 | D12: 0 | E12: 28.42 | F12: 8.83 | G12: 0.23 | I12: 3.567676768 | M12: ADAMS C.L. TO JACKSON C.L.
B13: PIK | C13: 41 | D13: 0 | E13: 5.39 | F13: 0.57 | I13: 0.2303030303 | M13: HIGHLAND C.L. TO ROSS C.L.
B14: PIK | C14: 104 | D14: 0 | E14: 12.2 | F14: 14.21 | G14: 0.08 | I14: 5.741414141 | M14: SCIOTO C.L. TO WAVERLY CORP.
B15: PIK | C15: 124 | D15: 0 | E15: 17.12 | F15: 4.07 | I15: 1.644444444 | M15: HIGHLAND C.L. TO S.R 32
B16: PIK | C16: 220 | D16: 0 | E16: 7.03 | F16: 2.93 | I16: 1.183838384 | M16: SR 772 TO WAVERLY CORP.
B17: PIK | C17: 220 | D17: 8.01 | E17: 8.14 | F17: 0.08 | H17: 0.1 | I17: 0.07272727273 | M17: WAVERLY CORP. TO WAVERLY CORP.
B18: PIK | C18: 220 | D18: 9.55 | E18: 14 | F18: 0.99 | I18: 0.4 | M18: WAVERLY CORP TO S.R. 32 - SPRAY TOP OF CURB FROM 10.56 TO 10.66
B19: PIK | C19: 335 | D19: 0 | E19: 6.9 | F19: 1.25 | I19: 0.5050505051 | M19: SCIOTO C.L. TO BEAVER CORP.
B20: PIK | C20: 335 | D20: 7.9 | E20: 24.78 | F20: 4.33 | I20: 1.749494949 | M20: BEAVER CORP. TO WAVERLY CORP.
B21: PIK | C21: 551 | D21: 0 | E21: 2.87 | F21: 0.67 | I21: 0.2707070707 | M21: BEGIN S.R. 220 TO S.R. 104
B22: PIK | C22: 552 | D22: 0 | E22: 1.75 | F22: 0.34 | I22: 0.1373737374 | M22: BEGIN S.R. 220 TO S.R. 104
B23: PIK | C23: 772 | D23: 0 | E23: 9.29 | F23: 2.23 | I23: 0.901010101 | M23: SCIOTO C.L. TO S.R. 32
B24: PIK | C24: 772 | D24: 13.62 | E24: 24.02 | F24: 1.13 | I24: 0.4565656566 | M24: S.R. 124 TO ROSS C.L.
B25: PIK | C25: 776 | D25: 0 | E25: 0.99 | F25: 0.05 | I25: 0.0202020202 | M25: SCIOTO C.L. TO JACKSON C.L.
B40: TOTALS FOR THIS SHEET | F40: =SUM(F9:F39) -> 53.45 | G40: =SUM(G9:G39) -> 0.31 | H40: =SUM(H9:H29) -> 0.1 | I40: =SUM(I9:I39) -> 19.50707071
B41: SUB-TOTALS | F41: =SUM(F40:H40) -> 53.86
B42: TOTALS CARRIED TO GENERAL SUMMARY | F42: =ROUNDUP(F41,0) -> 54

Sheet 14-ROS
B1: HERBICIDAL SPRAYING NONSELECTIVE VEGETATION CONTROL DATA FOR ROSS COUNTY
B3: COUNTY | C3: ROUTE | D3: SLM | F3: GUARDRAIL SPRAYED | G3: CONCRETE DIVIDER SPRAYED | H3: CURB SPRAYED | I3: TOTAL TREATED | M3: COMMENTS
D7: FROM | E7: TO | F7: MILE | G7: MILE | H7: MILE | I7: ACRES
D8: SLM | E8: SLM
B9: ROS | C9: 23 | D9: 0 | E9: 22.2 | F9: 16.14 | G9: 1.5 | I9: =(H9*5280*42/12)/43560+(F9*5280*40/12)/43560 -> 6.521212121 | M9: PIKE C.L. TO PICKAWAY C.L. - INCLUDING RAMPS
B10: ROS | C10: 28 | D10: 0 | E10: 17.3 | F10: 2.75 | I10: 1.111111111 | M10: HIGHLAND C.L. TO U.S. 50
B11: ROS | C11: 35 | D11: 0 | E11: 20.69 | F11: 9.18 | G11: 0.55 | I11: 3.709090909 | M11: FAYETTE C.L. TO U.S. 23 - INCLUDING RAMPS
B12: ROS | C12: 35 | D12: 22.67 | E12: 36.98 | F12: 16.78 | G12: 0.52 | I12: 6.77979798 | M12: U.S. 23 TO JACKSON C.L. - INCLUDING RAMPS
B13: ROS | C13: 41 | D13: 0 | E13: 2.79 | F13: 0.33 | I13: 0.1333333333 | M13: PIKE C.L. TO U.S. 50
B14: ROS | C14: 41 | D14: 3.79 | E14: 15.49 | F14: 2.06 | I14: 0.8323232323 | M14: BAINBRIDGE CORP. TO HIGHLAND C.L.
B15: ROS | C15: 50 | D15: 0 | E15: 4 | F15: 1.6 | I15: 0.6464646465 | M15: HIGHLAND C.L. TO BAINBRIDGE CORP.
B16: ROS | C16: 50 | D16: 5.01 | E16: 20.07 | F16: 5.03 | I16: 2.032323232 | M16: BAINBRIDGE CORP. TO CHILLICOTHE CORP.
B17: ROS | C17: 50 | D17: 20.32 | E17: 21.56 | F17: 0.17 | I17: 0.06868686869 | M17: LEAVE CHILLICOTHE CORP. TO ENTER CHILLICOTHE CORP.
B18: ROS | C18: 50 | D18: 25.56 | E18: 37.68 | F18: 4.1 | G18: 0.01 | I18: 1.656565657 | M18: CHILLICOTHE CORP. TO VINTON C.L.
B19: ROS | C19: 104 | D19: 8.6 | E19: 11.23 | F19: 2.33 | G19: 0.11 | I19: 0.9414141414 | M19: U.S. 23 TO CHILLICOTHE CORP.
B20: ROS | C20: 104 | D20: 14.4 | E20: 25.74 | F20: 1.82 | G20: 0.05 | I20: 0.7353535354 | M20: CHILLIOTHE CORP. TO PICKAWAY C.L.
B21: ROS | C21: 138 | D21: 0 | E21: 16.83 | F21: 1.89 | G21: 0.03 | I21: 0.7636363636 | M21: HIGHLAND C.L. TO CLARKSBURG CORP.
B22: ROS | C22: 138 | D22: 17.27 | E22: 17.7 | F22: 0.05 | I22: 0.0202020202 | M22: CLARKSBURG CORP. TO PICKAWAY C.L.
B23: ROS | C23: 159 | D23: 0.42 | E23: 1.14 | F23: 1.16 | G23: 0.07 | I23: 0.4686868687 | M23: LEAVE CHILLICOTHE CORP. TO ENTER CHILLICOTHE CORP.
B24: ROS | C24: 159 | D24: 2.57 | E24: 10.93 | F24: 1.2 | I24: 0.4848484848 | M24: CHILLICOTHE CORP. TO KINGSTON CORP.
B25: ROS | C25: 180 | D25: 0 | E25: 11.67 | F25: 1.43 | I25: 0.5777777778 | M25: S.R. 159 TO ADELPHI CORP.
B26: ROS | C26: 207 | D26: 0 | E26: 3.39 | F26: 1.85 | G26: 0.07 | I26: 0.7474747475 | M26: S.R. 159 TO S.R. 104
B27: ROS | C27: 207 | D27: 3.9 | E27: 14.41 | F27: 1.36 | I27: 0.5494949495 | M27: S.R. 104 TO CLARKSBURG CORP.
B28: ROS | C28: 207 | D28: 14.78 | E28: 15.02 | F28: 0 | I28: 0 | M28: CLARKSBURG CORP. TO PICKAWAY C.L.
B29: ROS | C29: 327 | D29: 2.02 | E29: 4.61 | F29: 0.07 | I29: 0.02828282828 | M29: U.S. 50 TO VINTON C.L.
B30: ROS | C30: 327 | D30: 4.61 | E30: 5.61 | F30: 0 | I30: 0 | M30: HOCKING C.L. TO HOCKING C.L.
B31: ROS | C31: 327 | D31: 5.61 | E31: 7.5 | F31: 0.25 | I31: 0.101010101 | M31: HOCKING C.L. TO ADELPHI CORP.
B32: ROS | C32: 372 | D32: 0 | E32: 0.68 | F32: 0.47 | I32: 0.1898989899 | M32: U.S. 23 TO SCIOT0 TRAIL SP
B33: ROS | C33: 772 | D33: 0 | E33: 15.72 | F33: 4.16 | I33: 1.680808081 | M33: PIKE C.L. TO CHILLICOTHE CORP.
B45: TOTALS FOR THIS SHEET | F45: =SUM(F9:F36) -> 76.18 | G45: =SUM(G9:G36) -> 2.91 | H45: =SUM(H9:H23) -> 0 | I45: =SUM(I9:I36) -> 30.77979798
B46: SUB-TOTAL | F46: =SUM(F45:H45) -> 79.09
B47: TOTALS CARRIED TO GENERAL SUMMARY | F47: =ROUNDUP(F46,0) -> 80

Sheet 15-NO SPRAY
A1: Herbicidal NO SPRAY areas | F1: Description
A2: County | B2: Route | C2: Section | E2: LT/RT
A3: Ada | B3: 41 | C3: 0.47 | D3: 0.57 | F3: No Spray Signs
A4: Ada | B4: 41 | C4: 30.8 | F4: Oscad Entrance (Small Area)
A5: Ada | B5: 52 | C5: 3.8 | D5: 4.1 | F5: Moyer's Vineyard
A6: Ada | B6: 52 | C6: 4.9 | D6: 5.2 | F6: No Spray Signs
A7: Ada | B7: 125 | C7: 15.6 | D7: 15.8 | F7: No Spray Area
A8: Ada | B8: 125 | C8: 18 | D8: 18.26 | F8: No Spray Signs
A9: Ada | B9: 136 | C9: 9.95 | D9: 10.3 | F9: Wildflower Area
A10: Ada | B10: 247 | C10: 12.9 | D10: 13.5 | E10: RT | F10: Organic Farm
A11: Ada | B11: 781 | C11: 3.7 | D11: 3.8 | F11: No Spray Signs
A12: Bro | B12: 41 | C12: 1.49 | D12: 1.56 | F12: No Spray Signs
A13: Bro | B13: 50 | C13: 1 | D13: 1.27 | F13: Vinyard
A14: Bro | B14: 52 | C14: 1.8 | D14: 1.9 | F14: No Spray Requested by property owner
A15: Bro | B15: 52 | C15: 3.39 | D15: 3.43 | F15: No Spray Signs
A16: Bro | B16: 52 | C16: 9.39 | D16: 9.55 | F16: No Spray Signs
A17: Bro | B17: 68 | C17: 37.7 | D17: 38.18 | F17: No Spray Signs
A18: Bro | B18: 125 | C18: 0.2 | D18: 0.3 | F18: No Spray Requested by property owner
A19: Bro | B19: 221 | C19: 5.5 | D19: to Bridge | F19: No Spray Area
A20: Bro | B20: 251 | C20: 3.8 | D20: to County Line | F20: No Spray Area
A21: Law | B21: 7 | C21: 14.9 | D21: 15.5 | E21: LT | F21: Greenhouse
A22: Law | B22: 7 | E22: LT | F22: Village of Millersport - Orchard
A23: Law | B23: 7 | C23: 16.6 | E23: LT | F23: Tobacco Bed
A24: Law | B24: 217 | C24: 11.3 | E24: RT | F24: Tobacco Bed
A25: Law | B25: 217 | C25: 12.6 | D25: 12.9 | E25: LT | F25: Orchard
A26: Law | B26: 217 | C26: 17.53 | D26: (SR 7) | E26: LT | F26: Orchard
A27: Law | B27: 218 | C27: 0.2 | E27: LT & RT | F27: Tobacco Bed
A28: Law | B28: 218 | C28: 0.9 | E28: RT | F28: Tobacco Bed
A29: Law | B29: 218 | C29: 1.7 | E29: LT | F29: Tobacco Bed
A30: Law | B30: 218 | C30: 2.1 | E30: LT | F30: Tobacco Bed
A31: Law | B31: 378 | C31: 6.3 | E31: RT | F31: Tobacco Bed
A32: Law | B32: 522 | C32: 8.1 | E32: RT | F32: Tobacco Bed
A33: Law | B33: 775 | C33: 6.9 | F33: Greenhouse and Tobacco Bed
A34: Law | B34: 775 | C34: 10.8 | E34: LT | F34: Tobacco Bed
A35: Law | B35: 775 | C35: 11.1 | E35: LT | F35: Tobacco Bed
A36: Law | B36: 775 | C36: 12.1 | E36: LT | F36: Tobacco Bed
A37: Law | B37: 775 | C37: 13.7 | E37: RT | F37: Tobacco Bed
A38: Law | B38: 775 | C38: 14.2 | D38: 14.95 | E38: LT | F38: Tobacco Bed
A39: Law | B39: 775 | C39: 18.3 | E39: LT | F39: Tobacco Bed
A40: Law | B40: 775 | C40: 19.1 | E40: LT | F40: Tobacco Bed
A41: Pik | B41: 124 | C41: 7.3 | D41: 7.6 | E41: LT & RT | F41: Kincaid Fish Farm
A42: Pik | B42: 335 | C42: 6.2 | E42: RT | F42: Vineyard
A43: Pik | B43: 772 | C43: 4.6 | E43: RT | F43: Grapevines
A44: Pik | B44: 772 | C44: 4.75 | F44: Fruit Trees and Berries
A45: Pik | B45: 772 | C45: 5.14 | F45: Fruit Trees and Berries
A46: Pik | B46: 772 | C46: 7.6 | E46: RT | F46: Do Not Spray
A47: Ros | B47: 23 | C47: 0.37 | E47: RT | F47: Shelley's Nursery
A48: Ros | B48: 28 | D48: Lattaville | E48: RT | F48: Village of Lattaville - Grapevines
A49: Ros | B49: 28 | C49: 10.9 | E49: RT | F49: Grapevines
A50: Ros | B50: 41 | C50: 9.35 | E50: LT | F50: Vineyard
A51: Ros | B51: 50 | C51: 20.8 | E51: RT | F51: Nursery and Greenhouse
A52: Ros | B52: 159 | C52: 10.2 | E52: RT | F52: Greenhouse and Shrubs
A53: Ros | B53: 327 | C53: 5.5 | D53: 5.7 | E53: RT | F53: Do Not Spray
A54: Ros | B54: 207 | C54: 1.02 | E54: LT | F54: Fruit Trees
A55: Ros | B55: 207 | C55: 3.5 | D55: 3.75 | E55: LT & RT | F55: Do Not Spray
A56: Ros | B56: 207 | C56: 4.7 | D56: 4.8 | E56: RT | F56: Do Not Spray
A57: Ros | B57: 772 | D57: Address 13823 | E57: RT | F57: Richard Senter Residence
A58: Ros | B58: 772 | C58: 12.7 | D58: 13.3 | E58: LT & RT | F58: Hirsch Fruit Farm

Sheet 16-GUARDRAIL AND SIGN POST

Sheet 17-CURB AND CONCRETE BARRIER
